[Event "Titled Tuesday Blitz May 9 Early 2023"]
[White "Molina, Roberto Junio Brito"]
[Black "ArrestingPieces"]
[WhiteFideId "2109450"]
[WhiteElo "2376"]
[BlackElo "2384"]
[Result "0-1"]
[Round "03"]
[TimeControl "180+2"]
[Date "2023.05.09"]
[WhiteClock "0:00:19"]
[BlackClock "0:00:57"]

1. d4 {[%clk 0:03:00]}  d5 {[%clk 0:02:59]} 2. c4 {[%clk 0:03:00]}  e6 {[%clk 0:02:59]} 3. Nc3 {[%clk 0:02:59]}  Be7 {[%clk 0:03:00]} 4. cxd5 {[%clk 0:02:59]}  exd5 {[%clk 0:03:01]} 5. Bf4 {[%clk 0:02:59]}  Nf6 {[%clk 0:03:01]} 6. e3 {[%clk 0:03:00]}  O-O {[%clk 0:03:01]} 7. Bd3 {[%clk 0:03:00]}  c5 {[%clk 0:03:00]} 8. Nf3 {[%clk 0:03:00]}  Nc6 {[%clk 0:03:00]} 9. dxc5 {[%clk 0:02:59]}  Bxc5 {[%clk 0:02:59]} 10. O-O {[%clk 0:03:00]}  d4 {[%clk 0:02:51]} 11. Na4 {[%clk 0:02:59]}  Bd6 {[%clk 0:02:51]} 12. Bxd6 {[%clk 0:02:55]}  Qxd6 {[%clk 0:02:52]} 13. exd4 {[%clk 0:02:56]}  Rd8 {[%clk 0:02:51]} 14. Re1 {[%clk 0:02:51]}  Bg4 {[%clk 0:02:46]} 15. Be2 {[%clk 0:02:48]}  Nxd4 {[%clk 0:02:40]} 16. Nxd4 {[%clk 0:02:48]}  Qxd4 {[%clk 0:02:41]} 17. Bxg4 {[%clk 0:02:46]}  Qxg4 {[%clk 0:02:30]} 18. Qxg4 {[%clk 0:02:44]}  Nxg4 {[%clk 0:02:31]} 19. h3 {[%clk 0:02:29]}  Nf6 {[%clk 0:02:30]} 20. Re7 {[%clk 0:02:28]}  b6 {[%clk 0:02:07]} 21. Rc1 {[%clk 0:02:22]}  Rd7 {[%clk 0:02:06]} 22. Rxd7 {[%clk 0:02:21]}  Nxd7 {[%clk 0:02:07]} 23. Rc7 {[%clk 0:02:21]}  Nf6 {[%clk 0:02:06]} 24. Nc3 {[%clk 0:02:19]}  h6 {[%clk 0:01:58]} 25. Nb5 {[%clk 0:02:17]}  a6 {[%clk 0:01:52]} 26. Nd6 {[%clk 0:02:13]}  Rd8 {[%clk 0:01:52]} 27. Nxf7 {[%clk 0:02:07]}  Rd2 {[%clk 0:01:51]} 28. Ne5 {[%clk 0:02:00]}  Rxb2 {[%clk 0:01:49]} 29. a4 {[%clk 0:01:59]}  Rb4 {[%clk 0:01:47]} 30. Rb7 {[%clk 0:01:55]}  Nd5 {[%clk 0:01:44]} 31. Rd7 {[%clk 0:01:30]}  Nc3 {[%clk 0:01:42]} 32. a5 {[%clk 0:01:26]}  bxa5 {[%clk 0:01:35]} 33. Rd6 {[%clk 0:01:26]}  Rb1+ {[%clk 0:01:10]} 34. Kh2 {[%clk 0:01:25]}  a4 {[%clk 0:01:03]} 35. Rxa6 {[%clk 0:01:25]}  Ra1 {[%clk 0:01:03]} 36. Nc4 {[%clk 0:01:22]}  Nb1 {[%clk 0:01:03]} 37. Nd6 {[%clk 0:01:19]}  a3 {[%clk 0:01:01]} 38. Nf5 {[%clk 0:01:19]}  a2 {[%clk 0:01:00]} 39. Ne3 {[%clk 0:01:13]}  Nc3 {[%clk 0:00:59]} 40. Ra8+ {[%clk 0:01:02]}  Kh7 {[%clk 0:00:58]} 41. Nd5 {[%clk 0:00:19]}  Nxd5 {[%clk 0:00:57]} 0-1


[Site "https://www.chess.com"]

[Event "Titled Tuesday Blitz May 9 Early 2023"]
[White "Visakh N R"]
[Black "Rangel, Daniel"]
[WhiteFideId "25012223"]
[BlackFideId "2124475"]
[WhiteElo "2466"]
[BlackElo "2256"]
[Result "1-0"]
[Round "03"]
[TimeControl "180+2"]
[Date "2023.05.09"]
[WhiteClock "0:01:37"]
[BlackClock "0:00:28"]

1. e4 {[%clk 0:03:00]}  c5 {[%clk 0:02:59]} 2. Nf3 {[%clk 0:03:01]}  g6 {[%clk 0:03:00]} 3. c3 {[%clk 0:02:59]}  Bg7 {[%clk 0:03:00]} 4. d4 {[%clk 0:02:59]}  cxd4 {[%clk 0:03:01]} 5. cxd4 {[%clk 0:03:00]}  d5 {[%clk 0:03:02]} 6. e5 {[%clk 0:02:59]}  Bg4 {[%clk 0:03:02]} 7. Nc3 {[%clk 0:02:53]}  e6 {[%clk 0:03:02]} 8. Nb5 {[%clk 0:02:42]}  Kf8 {[%clk 0:02:43]} 9. Be2 {[%clk 0:02:37]}  Ne7 {[%clk 0:02:41]} 10. O-O {[%clk 0:02:32]}  Bxf3 {[%clk 0:02:14]} 11. Bxf3 {[%clk 0:02:32]}  Nbc6 {[%clk 0:02:12]} 12. Be3 {[%clk 0:02:22]}  Nf5 {[%clk 0:02:09]} 13. Bg4 {[%clk 0:02:22]}  h5 {[%clk 0:02:06]} 14. Bxf5 {[%clk 0:02:22]}  gxf5 {[%clk 0:02:07]} 15. Rc1 {[%clk 0:02:19]}  h4 {[%clk 0:02:04]} 16. Nd6 {[%clk 0:02:17]}  h3 {[%clk 0:01:48]} 17. g3 {[%clk 0:02:15]}  Qd7 {[%clk 0:01:42]} 18. Qb3 {[%clk 0:02:13]}  Rb8 {[%clk 0:01:36]} 19. Rc3 {[%clk 0:02:09]}  Nxe5 {[%clk 0:01:32]} 20. dxe5 {[%clk 0:02:01]}  Bxe5 {[%clk 0:01:33]} 21. Nb5 {[%clk 0:02:01]}  Bxc3 {[%clk 0:01:16]} 22. Qxc3 {[%clk 0:02:00]}  Rh7 {[%clk 0:01:07]} 23. Qe5 {[%clk 0:01:48]}  Rc8 {[%clk 0:00:58]} 24. Nxa7 {[%clk 0:01:47]}  Ra8 {[%clk 0:00:56]} 25. Rc1 {[%clk 0:01:47]}  Qa4 {[%clk 0:00:46]} 26. Nc8 {[%clk 0:01:39]}  Qe4 {[%clk 0:00:42]} 27. Bc5+ {[%clk 0:01:38]}  Kg8 {[%clk 0:00:41]} 28. Ne7+ {[%clk 0:01:38]}  Kf8 {[%clk 0:00:39]} 29. Nxf5+ {[%clk 0:01:37]}  Kg8 {[%clk 0:00:34]} 30. Ne7+ {[%clk 0:01:37]}  Kf8 {[%clk 0:00:28]} 31. Nxd5+ {[%clk 0:01:37]} 1-0


[Site "https://www.chess.com"]

[Event "Titled Tuesday Blitz May 9 Early 2023"]
[White "Rodshtein, Maxim"]
[Black "Alahakoon, Isuru"]
[WhiteFideId "2806851"]
[BlackFideId "9900993"]
[WhiteElo "2555"]
[BlackElo "1953"]
[Result "1-0"]
[Round "03"]
[TimeControl "180+2"]
[Date "2023.05.09"]
[WhiteClock "0:00:19"]
[BlackClock "0:00:00"]

1. e4 {[%clk 0:02:55]}  d5 {[%clk 0:02:59]} 2. exd5 {[%clk 0:02:54]}  Nf6 {[%clk 0:02:57]} 3. d4 {[%clk 0:02:54]}  Bg4 {[%clk 0:02:57]} 4. Be2 {[%clk 0:02:46]}  Bxe2 {[%clk 0:02:56]} 5. Qxe2 {[%clk 0:02:47]}  Qxd5 {[%clk 0:02:57]} 6. Nf3 {[%clk 0:02:47]}  Nc6 {[%clk 0:02:56]} 7. O-O {[%clk 0:02:46]}  O-O-O {[%clk 0:02:56]} 8. Rd1 {[%clk 0:02:35]}  e6 {[%clk 0:02:37]} 9. c4 {[%clk 0:02:29]}  Qh5 {[%clk 0:02:36]} 10. Nc3 {[%clk 0:02:27]}  Bd6 {[%clk 0:02:35]} 11. h3 {[%clk 0:02:13]}  h6 {[%clk 0:02:32]} 12. Be3 {[%clk 0:02:08]}  g5 {[%clk 0:02:26]} 13. d5 {[%clk 0:02:03]}  exd5 {[%clk 0:02:07]} 14. cxd5 {[%clk 0:02:01]}  Ne5 {[%clk 0:02:07]} 15. Nd4 {[%clk 0:01:25]}  Qxe2 {[%clk 0:02:06]} 16. Ndxe2 {[%clk 0:01:25]}  Rhe8 {[%clk 0:01:56]} 17. b3 {[%clk 0:01:21]}  Ned7 {[%clk 0:01:42]} 18. Rac1 {[%clk 0:01:18]}  a6 {[%clk 0:01:26]} 19. Nd4 {[%clk 0:01:08]}  g4 {[%clk 0:00:49]} 20. Nf5 {[%clk 0:01:00]}  gxh3 {[%clk 0:00:46]} 21. Nxd6+ {[%clk 0:00:41]}  cxd6 {[%clk 0:00:47]} 22. Ne4+ {[%clk 0:00:37]}  Kb8 {[%clk 0:00:37]} 23. Nxd6 {[%clk 0:00:37]}  Rg8 {[%clk 0:00:30]} 24. g3 {[%clk 0:00:37]}  Ne5 {[%clk 0:00:17]} 25. Bf4 {[%clk 0:00:37]}  Nfd7 {[%clk 0:00:15]} 26. Nxf7 {[%clk 0:00:36]}  Rde8 {[%clk 0:00:15]} 27. Kh2 {[%clk 0:00:29]}  Ka8 {[%clk 0:00:14]} 28. Nxe5 {[%clk 0:00:29]}  Nxe5 {[%clk 0:00:13]} 29. Kxh3 {[%clk 0:00:28]}  Ng6 {[%clk 0:00:11]} 30. Be3 {[%clk 0:00:26]}  h5 {[%clk 0:00:08]} 31. d6 {[%clk 0:00:26]}  Ne5 {[%clk 0:00:08]} 32. Rd5 {[%clk 0:00:24]}  Nd7 {[%clk 0:00:06]} 33. Rc7 {[%clk 0:00:23]}  Nf6 {[%clk 0:00:05]} 34. Rf5 {[%clk 0:00:23]}  Ng4 {[%clk 0:00:03]} 35. d7 {[%clk 0:00:19]}  Rd8 {[%clk 0:00:00]} 36. Bg5 {[%clk 0:00:19]} 1-0


[Site "https://www.chess.com"]

[Event "Titled Tuesday Blitz May 9 Early 2023"]
[White "Orzech, Dominik"]
[Black "Moroni, Luca Jr"]
[WhiteFideId "1115065"]
[BlackFideId "865834"]
[WhiteElo "2260"]
[BlackElo "2569"]
[Result "0-1"]
[Round "03"]
[TimeControl "180+2"]
[Date "2023.05.09"]
[WhiteClock "0:00:21"]
[BlackClock "0:00:22"]

1. d4 {[%clk 0:03:00]}  g6 {[%clk 0:03:00]} 2. Nf3 {[%clk 0:03:00]}  Bg7 {[%clk 0:03:01]} 3. c4 {[%clk 0:02:52]}  d6 {[%clk 0:03:02]} 4. g3 {[%clk 0:02:52]}  Bd7 {[%clk 0:03:02]} 5. Bg2 {[%clk 0:02:53]}  Qc8 {[%clk 0:03:02]} 6. Qb3 {[%clk 0:02:36]}  Nc6 {[%clk 0:03:01]} 7. d5 {[%clk 0:02:33]}  Ne5 {[%clk 0:03:01]} 8. Nxe5 {[%clk 0:02:32]}  Bxe5 {[%clk 0:03:02]} 9. Nd2 {[%clk 0:02:24]}  Bg7 {[%clk 0:02:53]} 10. O-O {[%clk 0:02:19]}  Nf6 {[%clk 0:02:53]} 11. e4 {[%clk 0:02:17]}  b6 {[%clk 0:02:49]} 12. Re1 {[%clk 0:02:16]}  e5 {[%clk 0:02:41]} 13. dxe6 {[%clk 0:02:14]}  Bxe6 {[%clk 0:02:41]} 14. e5 {[%clk 0:02:14]}  dxe5 {[%clk 0:02:42]} 15. Qb5+ {[%clk 0:02:08]}  Nd7 {[%clk 0:02:41]} 16. Bxa8 {[%clk 0:02:04]}  Qxa8 {[%clk 0:02:42]} 17. Ne4 {[%clk 0:02:00]}  O-O {[%clk 0:02:39]} 18. Ng5 {[%clk 0:01:52]}  Bf5 {[%clk 0:02:38]} 19. Qd5 {[%clk 0:01:52]}  Qxd5 {[%clk 0:02:09]} 20. cxd5 {[%clk 0:01:51]}  Nc5 {[%clk 0:02:10]} 21. Be3 {[%clk 0:01:45]}  Nd3 {[%clk 0:02:10]} 22. Re2 {[%clk 0:01:45]}  e4 {[%clk 0:02:08]} 23. Rb1 {[%clk 0:01:42]}  h6 {[%clk 0:02:07]} 24. Nxe4 {[%clk 0:01:22]}  Bxe4 {[%clk 0:02:08]} 25. Bxh6 {[%clk 0:01:22]}  f5 {[%clk 0:01:44]} 26. Bxg7 {[%clk 0:01:17]}  Kxg7 {[%clk 0:01:45]} 27. Rd1 {[%clk 0:01:15]}  Rf7 {[%clk 0:01:32]} 28. Red2 {[%clk 0:01:09]}  Ne5 {[%clk 0:01:30]} 29. Kf1 {[%clk 0:00:55]}  Nf3 {[%clk 0:01:29]} 30. Re2 {[%clk 0:00:54]}  Nxh2+ {[%clk 0:01:29]} 31. Ke1 {[%clk 0:00:54]}  Nf3+ {[%clk 0:01:29]} 32. Kf1 {[%clk 0:00:55]}  Rd7 {[%clk 0:01:20]} 33. Re3 {[%clk 0:00:53]}  Kf6 {[%clk 0:01:17]} 34. b4 {[%clk 0:00:50]}  g5 {[%clk 0:01:03]} 35. Ra3 {[%clk 0:00:42]}  Ke5 {[%clk 0:00:45]} 36. Rxa7 {[%clk 0:00:38]}  Bxd5 {[%clk 0:00:44]} 37. Kg2 {[%clk 0:00:33]}  g4 {[%clk 0:00:40]} 38. a4 {[%clk 0:00:25]}  Rh7 {[%clk 0:00:33]} 39. Rc1 {[%clk 0:00:22]}  Nd4+ {[%clk 0:00:25]} 40. Kf1 {[%clk 0:00:21]}  Rh1# {[%clk 0:00:22]} 0-1


[Site "https://www.chess.com"]

[Event "Titled Tuesday Blitz May 9 Early 2023"]
[White "Delorme, Alban"]
[Black "Djordjevic, Vuk"]
[WhiteFideId "623636"]
[BlackFideId "902098"]
[WhiteElo "2196"]
[BlackElo "2452"]
[Result "0-1"]
[Round "03"]
[TimeControl "180+2"]
[Date "2023.05.09"]
[WhiteClock "0:02:25"]
[BlackClock "0:01:52"]

1. e4 {[%clk 0:03:00]}  e6 {[%clk 0:03:00]} 2. d4 {[%clk 0:03:00]}  d5 {[%clk 0:03:00]} 3. Nc3 {[%clk 0:02:58]}  Bb4 {[%clk 0:03:00]} 4. e5 {[%clk 0:02:58]}  c5 {[%clk 0:03:00]} 5. a3 {[%clk 0:02:59]}  Bxc3+ {[%clk 0:03:00]} 6. bxc3 {[%clk 0:02:59]}  Ne7 {[%clk 0:02:59]} 7. h4 {[%clk 0:02:59]}  Qc7 {[%clk 0:02:58]} 8. h5 {[%clk 0:02:59]}  cxd4 {[%clk 0:02:51]} 9. cxd4 {[%clk 0:03:00]}  Qc3+ {[%clk 0:02:50]} 10. Bd2 {[%clk 0:03:00]}  Qxd4 {[%clk 0:02:51]} 11. Nf3 {[%clk 0:03:01]}  Qe4+ {[%clk 0:02:35]} 12. Be3 {[%clk 0:03:01]}  Qa4 {[%clk 0:02:20]} 13. h6 {[%clk 0:03:00]}  gxh6 {[%clk 0:02:17]} 14. Rh4 {[%clk 0:02:55]}  Qa5+ {[%clk 0:02:13]} 15. Bd2 {[%clk 0:02:53]}  Qc7 {[%clk 0:02:13]} 16. Bd3 {[%clk 0:02:47]}  Ng6 {[%clk 0:02:07]} 17. Rh5 {[%clk 0:02:41]}  Nc6 {[%clk 0:02:05]} 18. Qe2 {[%clk 0:02:39]}  Bd7 {[%clk 0:01:52]} 19. Bxh6 {[%clk 0:02:35]}  O-O-O {[%clk 0:01:52]} 20. Bg7 {[%clk 0:02:25]}  Nf4 {[%clk 0:01:52]} 0-1


[Site "https://www.chess.com"]

[Event "Titled Tuesday Blitz May 9 Early 2023"]
[White "Nissinen, Niilo Man"]
[Black "Peng, Li Min"]
[WhiteFideId "30950767"]
[BlackFideId "14112620"]
[WhiteElo "1952"]
[BlackElo "2436"]
[Result "0-1"]
[Round "03"]
[TimeControl "180+2"]
[Date "2023.05.09"]
[WhiteClock "0:00:11"]
[BlackClock "0:02:10"]

1. e4 {[%clk 0:03:00]}  Nc6 {[%clk 0:02:59]} 2. d4 {[%clk 0:02:59]}  d5 {[%clk 0:02:59]} 3. exd5 {[%clk 0:02:59]}  Qxd5 {[%clk 0:03:00]} 4. Nf3 {[%clk 0:03:00]}  Bg4 {[%clk 0:03:01]} 5. Be2 {[%clk 0:03:00]}  O-O-O {[%clk 0:03:01]} 6. c4 {[%clk 0:02:53]}  Qa5+ {[%clk 0:02:49]} 7. Bd2 {[%clk 0:02:50]}  Qf5 {[%clk 0:02:49]} 8. d5 {[%clk 0:02:36]}  Bxf3 {[%clk 0:02:49]} 9. Bxf3 {[%clk 0:02:35]}  Ne5 {[%clk 0:02:49]} 10. Be2 {[%clk 0:02:23]}  Nf6 {[%clk 0:02:44]} 11. O-O {[%clk 0:02:19]}  e6 {[%clk 0:02:39]} 12. Qa4 {[%clk 0:02:12]}  a6 {[%clk 0:02:34]} 13. dxe6 {[%clk 0:01:50]}  fxe6 {[%clk 0:02:35]} 14. Bc3 {[%clk 0:01:42]}  Ne4 {[%clk 0:02:28]} 15. Qc2 {[%clk 0:01:16]}  Bc5 {[%clk 0:02:25]} 16. Bxe5 {[%clk 0:00:53]}  Bxf2+ {[%clk 0:02:24]} 17. Kh1 {[%clk 0:00:54]}  Ng3+ {[%clk 0:02:24]} 18. Bxg3 {[%clk 0:00:50]}  Qxc2 {[%clk 0:02:25]} 19. Nc3 {[%clk 0:00:25]}  Bxg3 {[%clk 0:02:23]} 20. hxg3 {[%clk 0:00:25]}  Qxb2 {[%clk 0:02:23]} 21. Rac1 {[%clk 0:00:24]}  Rhf8 {[%clk 0:02:20]} 22. Rfe1 {[%clk 0:00:24]}  Rd2 {[%clk 0:02:13]} 23. Bg4 {[%clk 0:00:11]}  Rxg2 {[%clk 0:02:10]} 0-1


[Site "https://www.chess.com"]

[Event "Titled Tuesday Blitz May 9 Early 2023"]
[White "Kaasen, Tor Fredrik"]
[Black "Samaganova, Aleksandra"]
[WhiteFideId "1516647"]
[BlackFideId "13800221"]
[WhiteElo "2349"]
[BlackElo "1858"]
[Result "1-0"]
[Round "03"]
[TimeControl "180+2"]
[Date "2023.05.09"]
[WhiteClock "0:01:05"]
[BlackClock "0:00:16"]

1. e4 {[%clk 0:03:00]}  c5 {[%clk 0:02:58]} 2. Nf3 {[%clk 0:03:01]}  e6 {[%clk 0:02:58]} 3. g3 {[%clk 0:02:59]}  Nc6 {[%clk 0:02:56]} 4. Bg2 {[%clk 0:02:59]}  g6 {[%clk 0:02:52]} 5. O-O {[%clk 0:02:58]}  Bg7 {[%clk 0:02:51]} 6. Re1 {[%clk 0:02:56]}  Nge7 {[%clk 0:02:45]} 7. c3 {[%clk 0:02:56]}  d5 {[%clk 0:02:34]} 8. e5 {[%clk 0:02:52]}  O-O {[%clk 0:02:26]} 9. d4 {[%clk 0:02:52]}  cxd4 {[%clk 0:02:22]} 10. cxd4 {[%clk 0:02:53]}  h6 {[%clk 0:02:18]} 11. Nc3 {[%clk 0:02:53]}  a6 {[%clk 0:02:14]} 12. h4 {[%clk 0:02:52]}  Nf5 {[%clk 0:02:12]} 13. Bf4 {[%clk 0:02:51]}  Qb6 {[%clk 0:02:02]} 14. Na4 {[%clk 0:02:50]}  Qa7 {[%clk 0:02:02]} 15. Be3 {[%clk 0:02:09]}  Nxe3 {[%clk 0:01:50]} 16. Rxe3 {[%clk 0:02:09]}  Ne7 {[%clk 0:01:46]} 17. Rc1 {[%clk 0:01:58]}  Nf5 {[%clk 0:01:37]} 18. Rec3 {[%clk 0:01:57]}  Bd7 {[%clk 0:01:37]} 19. Nc5 {[%clk 0:01:56]}  Bc6 {[%clk 0:01:29]} 20. Bh3 {[%clk 0:01:50]}  a5 {[%clk 0:01:10]} 21. h5 {[%clk 0:01:45]}  Ne7 {[%clk 0:01:04]} 22. hxg6 {[%clk 0:01:41]}  Nxg6 {[%clk 0:01:04]} 23. Qd3 {[%clk 0:01:37]}  Ne7 {[%clk 0:00:53]} 24. Nh4 {[%clk 0:01:36]}  a4 {[%clk 0:00:36]} 25. Kg2 {[%clk 0:01:32]}  Qa5 {[%clk 0:00:36]} 26. Rh1 {[%clk 0:01:13]}  Bb5 {[%clk 0:00:28]} 27. Qc2 {[%clk 0:01:05]}  b6 {[%clk 0:00:27]} 28. Nxe6 {[%clk 0:01:05]}  fxe6 {[%clk 0:00:21]} 29. Bxe6+ {[%clk 0:01:06]}  Kh8 {[%clk 0:00:21]} 30. Ng6+ {[%clk 0:01:04]}  Nxg6 {[%clk 0:00:21]} 31. Qxg6 {[%clk 0:01:05]}  Be8 {[%clk 0:00:18]} 32. Rxh6+ {[%clk 0:01:04]}  Bxh6 {[%clk 0:00:16]} 33. Qxh6# {[%clk 0:01:05]} 1-0


[Site "https://www.chess.com"]

[Event "Titled Tuesday Blitz May 9 Early 2023"]
[White "Yonal, Timur"]
[Black "Fernandez Guillen, Ernesto J."]
[WhiteFideId "44115725"]
[BlackFideId "3512428"]
[WhiteElo "1966"]
[BlackElo "2429"]
[Result "0-1"]
[Round "03"]
[TimeControl "180+2"]
[Date "2023.05.09"]
[WhiteClock "0:00:03"]
[BlackClock "0:01:52"]

1. e4 {[%clk 0:02:55]}  e5 {[%clk 0:02:58]} 2. Nf3 {[%clk 0:02:55]}  Nc6 {[%clk 0:02:58]} 3. Bb5 {[%clk 0:02:54]}  f5 {[%clk 0:02:59]} 4. d3 {[%clk 0:02:54]}  fxe4 {[%clk 0:02:59]} 5. dxe4 {[%clk 0:02:55]}  Nf6 {[%clk 0:02:59]} 6. Qe2 {[%clk 0:02:54]}  d6 {[%clk 0:02:59]} 7. Qc4 {[%clk 0:02:45]}  Bd7 {[%clk 0:02:58]} 8. O-O {[%clk 0:02:34]}  a6 {[%clk 0:02:56]} 9. Bxc6 {[%clk 0:02:34]}  bxc6 {[%clk 0:02:57]} 10. Nc3 {[%clk 0:02:33]}  Qe7 {[%clk 0:02:57]} 11. a4 {[%clk 0:02:28]}  g6 {[%clk 0:02:39]} 12. a5 {[%clk 0:02:13]}  Bg7 {[%clk 0:02:34]} 13. Rd1 {[%clk 0:01:54]}  Qe6 {[%clk 0:02:33]} 14. Qd3 {[%clk 0:01:02]}  O-O {[%clk 0:02:29]} 15. Na4 {[%clk 0:01:01]}  Kh8 {[%clk 0:02:24]} 16. c4 {[%clk 0:01:00]}  c5 {[%clk 0:02:24]} 17. Nc3 {[%clk 0:01:00]}  h6 {[%clk 0:02:14]} 18. h3 {[%clk 0:00:41]}  Qf7 {[%clk 0:02:10]} 19. Be3 {[%clk 0:00:38]}  Be6 {[%clk 0:02:09]} 20. b3 {[%clk 0:00:23]}  Rab8 {[%clk 0:02:08]} 21. Rab1 {[%clk 0:00:20]}  Rxb3 {[%clk 0:02:03]} 22. Rxb3 {[%clk 0:00:20]}  Bxc4 {[%clk 0:02:03]} 23. Qd2 {[%clk 0:00:11]}  Bxb3 {[%clk 0:02:03]} 24. Rb1 {[%clk 0:00:11]}  c4 {[%clk 0:02:03]} 25. Nd5 {[%clk 0:00:11]}  Nxd5 {[%clk 0:02:03]} 26. exd5 {[%clk 0:00:12]}  Qf5 {[%clk 0:02:00]} 27. Rb2 {[%clk 0:00:12]}  g5 {[%clk 0:01:54]} 28. Qc3 {[%clk 0:00:11]}  Kh7 {[%clk 0:01:51]} 29. Nd2 {[%clk 0:00:08]}  e4 {[%clk 0:01:51]} 30. Bd4 {[%clk 0:00:03]}  Qxf2+ {[%clk 0:01:52]} 0-1


[Site "https://www.chess.com"]

[Event "Titled Tuesday Blitz May 9 Early 2023"]
[White "Bok, Benjamin"]
[Black "Koellner, Ruben Gideon"]
[WhiteFideId "1017063"]
[BlackFideId "12993093"]
[WhiteElo "2657"]
[BlackElo "2314"]
[Result "1-0"]
[Round "03"]
[TimeControl "180+2"]
[Date "2023.05.09"]
[WhiteClock "0:01:00"]
[BlackClock "0:00:48"]

1. d4 {[%clk 0:03:00]}  d6 {[%clk 0:02:58]} 2. Nf3 {[%clk 0:02:58]}  Nf6 {[%clk 0:02:55]} 3. c4 {[%clk 0:02:58]}  g6 {[%clk 0:02:55]} 4. g3 {[%clk 0:02:57]}  Bg7 {[%clk 0:02:54]} 5. Bg2 {[%clk 0:02:57]}  O-O {[%clk 0:02:55]} 6. Nc3 {[%clk 0:02:55]}  Nbd7 {[%clk 0:02:55]} 7. O-O {[%clk 0:02:54]}  e5 {[%clk 0:02:56]} 8. e4 {[%clk 0:02:55]}  Re8 {[%clk 0:02:56]} 9. h3 {[%clk 0:02:53]}  c6 {[%clk 0:02:56]} 10. Be3 {[%clk 0:02:45]}  Qc7 {[%clk 0:02:56]} 11. Qc2 {[%clk 0:02:45]}  a6 {[%clk 0:02:56]} 12. Rfd1 {[%clk 0:02:18]}  b5 {[%clk 0:02:50]} 13. dxe5 {[%clk 0:02:13]}  Nxe5 {[%clk 0:02:45]} 14. Nxe5 {[%clk 0:01:54]}  dxe5 {[%clk 0:02:46]} 15. Rac1 {[%clk 0:01:52]}  b4 {[%clk 0:02:46]} 16. Na4 {[%clk 0:01:50]}  Nd7 {[%clk 0:02:37]} 17. c5 {[%clk 0:01:48]}  Nf8 {[%clk 0:02:21]} 18. Nb6 {[%clk 0:01:45]}  Ra7 {[%clk 0:02:17]} 19. Qa4 {[%clk 0:01:40]}  a5 {[%clk 0:02:15]} 20. Rd6 {[%clk 0:01:40]}  Bb7 {[%clk 0:02:03]} 21. Rcd1 {[%clk 0:01:39]}  Ne6 {[%clk 0:01:59]} 22. Rd7 {[%clk 0:01:36]}  Qb8 {[%clk 0:01:59]} 23. Bf1 {[%clk 0:01:30]}  Nd4 {[%clk 0:01:51]} 24. Bc4 {[%clk 0:01:22]}  Rf8 {[%clk 0:01:45]} 25. Bxd4 {[%clk 0:01:15]}  exd4 {[%clk 0:01:46]} 26. Qb3 {[%clk 0:01:15]}  Qe5 {[%clk 0:01:31]} 27. Qf3 {[%clk 0:01:06]}  Qxc5 {[%clk 0:01:10]} 28. Rxf7 {[%clk 0:01:03]}  Kh8 {[%clk 0:00:48]} 29. Nd7 {[%clk 0:01:00]} 1-0


[Site "https://www.chess.com"]

[Event "Titled Tuesday Blitz May 9 Early 2023"]
[White "demon64fields"]
[Black "Wadsworth, Matthew J"]
[BlackFideId "415804"]
[WhiteElo "2893"]
[BlackElo "2347"]
[Result "1-0"]
[Round "03"]
[TimeControl "180+2"]
[Date "2023.05.09"]
[WhiteClock "0:01:31"]
[BlackClock "0:00:01"]

1. Nf3 {[%clk 0:02:59]}  d5 {[%clk 0:02:58]} 2. g3 {[%clk 0:02:59]}  Bg4 {[%clk 0:02:52]} 3. Ne5 {[%clk 0:02:59]}  Bf5 {[%clk 0:02:51]} 4. d4 {[%clk 0:02:59]}  Nd7 {[%clk 0:02:50]} 5. Bg2 {[%clk 0:02:59]}  c6 {[%clk 0:02:50]} 6. O-O {[%clk 0:02:59]}  e6 {[%clk 0:02:50]} 7. c4 {[%clk 0:03:00]}  Ngf6 {[%clk 0:02:50]} 8. Nc3 {[%clk 0:03:00]}  Be7 {[%clk 0:02:46]} 9. Qb3 {[%clk 0:03:00]}  Qb6 {[%clk 0:02:46]} 10. Nxd7 {[%clk 0:03:00]}  Nxd7 {[%clk 0:02:45]} 11. e4 {[%clk 0:03:01]}  dxe4 {[%clk 0:02:41]} 12. Nxe4 {[%clk 0:03:02]}  Nf6 {[%clk 0:02:22]} 13. Nc5 {[%clk 0:03:02]}  Bxc5 {[%clk 0:02:11]} 14. dxc5 {[%clk 0:03:02]}  Qxb3 {[%clk 0:02:11]} 15. axb3 {[%clk 0:03:03]}  Bc2 {[%clk 0:01:49]} 16. Bf4 {[%clk 0:03:01]}  a6 {[%clk 0:01:27]} 17. Rfc1 {[%clk 0:02:51]}  Be4 {[%clk 0:01:26]} 18. b4 {[%clk 0:02:48]}  Bxg2 {[%clk 0:01:24]} 19. Kxg2 {[%clk 0:02:49]}  O-O {[%clk 0:01:07]} 20. Rd1 {[%clk 0:02:46]}  Rfd8 {[%clk 0:01:02]} 21. Rxd8+ {[%clk 0:02:44]}  Rxd8 {[%clk 0:01:01]} 22. b5 {[%clk 0:02:45]}  axb5 {[%clk 0:00:58]} 23. cxb5 {[%clk 0:02:45]}  cxb5 {[%clk 0:00:54]} 24. Ra7 {[%clk 0:02:45]}  Nd7 {[%clk 0:00:36]} 25. Bd6 {[%clk 0:02:38]}  Nb8 {[%clk 0:00:22]} 26. Rxb7 {[%clk 0:02:34]}  Nc6 {[%clk 0:00:22]} 27. Rxb5 {[%clk 0:02:29]}  f6 {[%clk 0:00:20]} 28. b4 {[%clk 0:02:29]}  e5 {[%clk 0:00:19]} 29. Rb7 {[%clk 0:02:27]}  Nd4 {[%clk 0:00:17]} 30. b5 {[%clk 0:02:26]}  Nf5 {[%clk 0:00:17]} 31. Be7 {[%clk 0:02:21]}  Rd2 {[%clk 0:00:14]} 32. c6 {[%clk 0:02:17]}  Rc2 {[%clk 0:00:12]} 33. Bd8 {[%clk 0:02:13]}  Nd6 {[%clk 0:00:09]} 34. Rb8 {[%clk 0:02:13]}  Kf7 {[%clk 0:00:09]} 35. c7 {[%clk 0:02:13]}  Ke6 {[%clk 0:00:09]} 36. b6 {[%clk 0:02:13]}  Kd7 {[%clk 0:00:07]} 37. b7 {[%clk 0:02:12]}  Rc6 {[%clk 0:00:05]} 38. c8=Q+ {[%clk 0:01:52]}  Nxc8 {[%clk 0:00:04]} 39. bxc8=Q+ {[%clk 0:01:53]}  Rxc8 {[%clk 0:00:04]} 40. Rxc8 {[%clk 0:01:54]}  Kxc8 {[%clk 0:00:05]} 41. Ba5 {[%clk 0:01:54]}  Kd7 {[%clk 0:00:06]} 42. Kf3 {[%clk 0:01:54]}  Ke6 {[%clk 0:00:06]} 43. Ke3 {[%clk 0:01:52]}  h5 {[%clk 0:00:06]} 44. f3 {[%clk 0:01:50]}  Kf5 {[%clk 0:00:06]} 45. Bc3 {[%clk 0:01:49]}  g5 {[%clk 0:00:06]} 46. h3 {[%clk 0:01:48]}  g4 {[%clk 0:00:06]} 47. fxg4+ {[%clk 0:01:41]}  hxg4 {[%clk 0:00:06]} 48. h4 {[%clk 0:01:41]}  Ke6 {[%clk 0:00:06]} 49. Kd3 {[%clk 0:01:39]}  f5 {[%clk 0:00:06]} 50. Ke3 {[%clk 0:01:39]}  Kf6 {[%clk 0:00:04]} 51. Bb2 {[%clk 0:01:34]}  Ke6 {[%clk 0:00:03]} 52. h5 {[%clk 0:01:31]}  Kf6 {[%clk 0:00:02]} 53. h6 {[%clk 0:01:30]}  Kg6 {[%clk 0:00:02]} 54. Bxe5 {[%clk 0:01:30]}  Kxh6 {[%clk 0:00:02]} 55. Kf4 {[%clk 0:01:30]}  Kg6 {[%clk 0:00:01]} 56. Bb2 {[%clk 0:01:31]} 1-0


[Site "https://www.chess.com"]